bitfinex-derivatives/quotes_SOLF0:USTF0_20251230
["timestamp","ask_amount","ask_price","bid_price","bid_amount"]
[1767136891670,0.05116884,124.77,124.73,10.66601632]
[1767136894474,0.05116884,124.77,124.74,3.39]
[1767136895368,0.05116884,124.77,124.73,0.05201632]
[1767136896567,7.27296884,124.77,124.73,0.05201632]
[1767136896769,10.62296884,124.77,124.73,0.05201632]
[1767136896978,3.40116884,124.77,124.73,0.05201632]
[1767136900585,3.35,124.75,124.7,3.39]
[1767136901478,0.05367573,124.74,124.71,0.05072305]
[1767136905595,0.00367573,124.74,124.71,3.44072305]
[1767136907291,0.00367573,124.74,124.71,10.66582305]
[1767136909102,3.38,124.77,124.72,3.41]
[1767136910200,0.05852042,124.76,124.72,3.41]
[1767136915506,3.43852042,124.76,124.71,0.05072305]
[1767136921920,3.25,124.74,124.68,10.63002491]
[1767136922211,3.25,124.74,124.68,3.22]
[1767136923004,0.05626167,124.72,124.7,0.05495649]
[1767136929115,0.05626167,124.72,124.68,3.22]
[1767136929116,3.30626167,124.72,124.66,98.0]
[1767136929421,3.30626167,124.72,124.67,3.22]
[1767136930116,3.30626167,124.72,124.68,0.05202585]
[1767136931814,0.05626167,124.72,124.68,3.27202585]
[1767136937019,0.05626167,124.72,124.68,10.49892585]
[1767136937221,0.05626167,124.72,124.69,3.41]
[1767136937826,0.05626167,124.72,124.68,7.27892585]
[1767136938124,0.05626167,124.72,124.68,10.68892585]
[1767136940522,0.05626167,124.72,124.68,3.46202585]
[1767136948223,0.05626167,124.72,124.65,3.41]
[1767136948224,3.34,124.7,124.65,3.41]
[1767136948825,1.91093087,124.69,124.65,3.41]
[1767136949227,0.05777838,124.68,124.66,0.05072181]
[1767136949423,0.05777838,124.68,124.61,102.23002491]
[1767136949629,3.39777838,124.68,124.61,94.82]
[1767136949924,3.39777838,124.68,124.6,261.16783138]
[1767136950121,3.34,124.68,124.6,355.98783138]
[1767136950535,0.05569345,124.65,124.63,0.05575367]
[1767136950723,3.34,124.68,124.63,0.05575367]
[1767136951826,0.05178876,124.67,124.63,0.05575367]
[1767136953933,0.05178876,124.67,124.63,3.46575367]
[1767136967343,3.36178876,124.67,124.63,3.46575367]
[1767136968543,0.05178876,124.67,124.63,3.46575367]
[1767136988358,10.5356,124.71,124.65,3.32]
[1767136988554,3.31,124.71,124.65,3.32]
[1767136988756,2.99021532,124.75,124.65,3.32]
[1767136988757,3.31,124.74,124.65,98.18]
[1767136989065,3.31,124.74,124.66,3.32]
[1767136989466,0.0553448,124.71,124.69,0.05721147]
[1767136997860,3.45,124.77,124.69,3.48721147]
[1767136998066,3.45,124.77,124.69,3.43]
[1767136998067,3.45,124.76,124.69,3.43]
[1767136998974,112.3413,124.77,124.69,3.43]
[1767136998975,0.06138868,124.74,124.71,0.05198972]
[1767136999565,7.28488868,124.74,124.71,0.05198972]
[1767137003276,0.06138868,124.74,124.71,0.05198972]
[1767137019887,0.00138868,124.74,124.71,3.48198972]
[1767137032005,0.00138868,124.74,124.71,0.05198972]
[1767137032214,0.00138868,124.74,124.69,3.4]
[1767137032618,7.22498868,124.74,124.69,3.4]
[1767137033118,7.22498868,124.74,124.7,0.05364483]
[1767137038626,0.00138868,124.74,124.7,0.05364483]
[1767137045429,0.00138868,124.74,124.7,3.45364483]
[1767137046725,3.32,124.77,124.7,3.45364483]
[1767137046932,3.32,124.77,124.71,3.26]
[1767137047826,0.05542489,124.75,124.73,0.06109421]
[1767137048829,0.05542489,124.75,124.73,3.32109421]
[1767137049033,3.32,124.77,124.73,3.32109421]
[1767137050032,0.05761085,124.76,124.73,3.32109421]
[1767137056233,3.4,124.79,124.73,3.32109421]
[1767137056438,5.31159833,124.78,124.73,3.32109421]
[1767137056626,5.31159833,124.78,124.73,3.26]
[1767137057030,12.53299833,124.78,124.73,3.26]
[1767137057231,12.53299833,124.78,124.74,0.05107856]
[1767137057441,3.4,124.75,124.71,3.49]
[1767137058440,0.05154248,124.74,124.72,0.05911657]
[1767137078167,0.05154248,124.74,124.72,3.54911657]
[1767137078168,0.00154248,124.74,124.72,3.54911657]
[1767137079154,10.6222,124.77,124.72,3.54911657]
[1767137094369,3.22,124.74,124.72,0.05911657]
[1767137104585,7.2224,124.76,124.72,0.05911657]
[1767137104776,10.6424,124.76,124.72,0.05911657]
[1767137104972,3.42,124.75,124.72,0.05911657]
[1767137135012,3.43,124.74,124.69,7.4632109]
[1767137135203,3.43,124.74,124.68,18.0901109]
[1767137136008,0.05911657,124.72,124.7,0.05414868]
[1767137136814,3.43,124.76,124.7,10.91735958]
[1767137137110,3.43,124.76,124.7,10.8632109]
[1767137137704,3.43,124.76,124.72,0.05860068]
[1767137149822,3.43,124.76,124.69,17.19566434]
[1767137149823,3.60860068,124.75,124.69,14.6895109]
[1767137150018,3.60860068,124.75,124.69,7.2263]
[1767137150214,3.60860068,124.75,124.69,17.9695109]
[1767137151011,3.60860068,124.75,124.71,0.05268916]
[1767137183155,0.05860068,124.75,124.71,18.22110006]
[1767137183357,10.52810274,124.79,124.74,3.48]
[1767137183358,3.22,124.79,124.74,3.48]
[1767137183758,3.22,124.79,124.74,10.7034]
[1767137184659,3.22,124.79,124.75,0.06076321]
[1767137187454,3.22,124.79,124.75,7.28356321]
[1767137192266,3.22,124.79,124.75,0.06076321]
[1767137221092,10.4406,124.79,124.75,0.06076321]
[1767137221495,3.52,124.78,124.75,0.06076321]
[1767137230700,3.4,124.81,124.75,0.06076321]
[1767137230894,3.4,124.81,124.74,10.65679227]
[1767137231604,3.4,124.8,124.74,10.65679227]
[1767137231899,0.05909036,124.78,124.76,0.05665392]
[1767137253111,3.40909036,124.78,124.76,0.05665392]
[1767137253304,3.40909036,124.78,124.74,7.42679227]
[1767137253505,3.40909036,124.78,124.73,105.57679227]
[1767137254315,3.40909036,124.78,124.74,0.05689569]
[1767137270924,3.40909036,124.78,124.74,7.48368796]
[1767137282630,3.40909036,124.78,124.74,0.05689569]
[1767137284534,3.40909036,124.78,124.74,7.48368796]
[1767137284926,3.40909036,124.78,124.74,14.70718796]
[1767137285129,0.05909036,124.78,124.74,12.81367048]
[1767137285627,0.05909036,124.78,124.74,12.83342309]
[1767137286736,0.05909036,124.78,124.75,7.2228]
[1767137289634,0.05909036,124.78,124.75,14.66934488]
[1767137309545,0.05909036,124.78,124.75,3.24]
[1767137340782,10.7193,124.82,124.75,3.24]
[1767137341076,12.62928252,124.82,124.75,3.24]
[1767137341482,3.5,124.81,124.75,3.24]
[1767137341877,0.05107496,124.79,124.77,0.0536485]
[1767137343681,0.00107496,124.79,124.77,3.5236485]
[1767137344787,3.5,124.82,124.77,3.5236485]
[1767137347780,10.718,124.84,124.78,3.47]
[1767137348090,10.718,124.84,124.8,0.05086537]
[1767137348889,3.5,124.83,124.8,0.05086537]
[1767137349688,3.5,124.82,124.8,0.05086537]
[1767137353979,3.5,124.84,124.8,0.05086537]
[1767137354696,3.5,124.84,124.8,3.52086537]
[1767137354885,3.5,124.84,124.8,0.05086537]
[1767137363299,10.7178,124.84,124.8,0.05086537]
[1767137364502,3.26,124.83,124.8,0.00086537]
[1767137365592,3.31055896,124.83,124.8,0.00086537]
[1767137366195,3.26,124.82,124.8,0.00086537]
[1767137390305,6.36157814,124.87,124.83,3.41]
[1767137390507,3.36,124.86,124.81,101.13323223]
[1767137390710,3.36,124.86,124.81,108.56012012]
[1767137391405,3.36,124.86,124.82,0.05143589]
[1767137396016,6.36157814,124.87,124.82,0.05143589]
[1767137397910,3.36,124.86,124.82,0.05143589]
[1767137398214,3.36,124.84,124.82,0.00143589]
[1767137412326,3.36,124.84,124.78,14.64778789]
[1767137412526,3.36,124.84,124.79,96.62784962]
[1767137412913,3.36,124.84,124.79,94.72]
[1767137413120,3.36,124.84,124.8,1.90784962]
[1767137413429,0.05645589,124.83,124.81,0.0546339]
[1767137413822,3.36,124.84,124.81,0.0546339]
[1767137418232,3.39,124.86,124.81,1.96248352]
[1767137418528,3.39,124.86,124.81,5.37248352]
[1767137419623,3.39,124.86,124.81,12.59188352]
[1767137420530,3.39,124.86,124.81,10.6840339]
[1767137420937,3.39,124.86,124.81,12.59188352]
[1767137423334,3.39,124.86,124.82,7.2187]
[1767137424042,6.36157814,124.87,124.82,10.6287]
[1767137424532,6.36157814,124.87,124.82,105.3487]
[1767137424834,9.75157814,124.87,124.82,105.3487]
[1767137425040,160.09738909,124.87,124.82,105.3487]
[1767137429632,160.09738909,124.87,124.83,7.2182]
[1767137429844,160.09738909,124.87,124.84,0.05383969]
[1767137431041,1.95949463,124.89,124.84,3.46383969]
[1767137432638,1.95949463,124.89,124.85,7.2171]
[1767137434347,1.95949463,124.89,124.85,101.9171]
[1767137434744,1.95949463,124.89,124.85,94.7]
[1767137446967,1.95949463,124.89,124.85,97.91]
[1767137447769,1.95949463,124.89,124.85,3.21]
[1767137448068,1.95949463,124.89,124.85,97.89]
[1767137452868,149.19667275,124.9,124.85,97.89]
[1767137460678,149.19667275,124.9,124.86,3.22]
[1767137460880,149.19667275,124.9,124.87,0.05697011]
[1767137461773,145.64667275,124.9,124.87,3.27697011]
[1767137461968,142.09667275,124.9,124.87,3.27697011]
[1767137465677,142.09667275,124.9,124.87,94.73697011]
[1767137470587,3.44,124.89,124.84,10.2676]
[1767137470787,3.44,124.89,124.85,94.68]
[1767137471580,3.44,124.87,124.82,10.47688789]
[1767137471887,3.44,124.87,124.83,94.68]
[1767137472787,10.656,124.87,124.84,0.05913242]
[1767137473282,3.44,124.87,124.84,0.05913242]
[1767137476491,0.05697011,124.88,124.84,0.05913242]
[1767137480293,0.05697011,124.88,124.84,3.16913242]
[1767137484195,0.05697011,124.88,124.84,10.38653242]
[1767137484399,142.09667275,124.9,124.85,3.11]
[1767137484600,142.09667275,124.9,124.86,3.05]
[1767137484903,142.09667275,124.9,124.87,94.7]
[1767137485491,142.15495713,124.9,124.87,94.75972022]
[1767137488102,142.15495713,124.9,124.87,97.80972022]
[1767137493800,142.15495713,124.9,124.87,0.05972022]
[1767137494002,142.15495713,124.9,124.87,94.73972022]
[1767137504119,142.15495713,124.9,124.87,97.78972022]
[1767137504301,3.23,124.93,124.87,97.78972022]
[1767137504611,3.23,124.93,124.88,94.68]
[1767137505211,3.23,124.93,124.88,104.9453]
[1767137506007,3.23,124.93,124.89,94.68]
[1767137506202,3.23,124.93,124.9,0.0563629]
[1767137508810,3.33,124.95,124.9,0.0563629]
[1767137509006,154.6640938,124.95,124.9,0.0563629]
[1767137509321,3.33,124.97,124.91,3.05]
[1767137509613,3.33,124.97,124.93,0.05930284]
[1767137518931,3.33,124.97,124.93,3.10930284]
[1767137524132,3.33,124.97,124.94,94.64]
[1767137525132,3.33,124.97,124.95,94.64]
[1767137525333,3.47,124.99,124.95,94.64]
[1767137525527,3.47,124.99,124.96,0.05434602]
[1767137525724,3.47,124.99,124.96,94.69434602]
[1767137529535,3.47,124.99,124.96,94.67434602]
[1767137531437,3.47,124.99,124.94,7.2118]
[1767137531636,3.47,124.98,124.93,94.62]
[1767137532136,3.47,124.98,124.92,3.05]
[1767137532341,3.47,124.98,124.92,97.67]
[1767137532641,0.05646166,124.96,124.94,0.05202702]
[1767137535637,10.73726166,124.96,124.9,3.1]
[1767137535843,10.73726166,124.96,124.91,94.62]
[1767137536046,10.73726166,124.96,124.91,97.72]
[1767137536848,10.73726166,124.96,124.92,0.056416]
[1767137537241,3.36,124.95,124.9,94.62]
[1767137538238,3.36,124.95,124.91,0.0546653]
[1767137538942,10.5722,124.94,124.89,3.15]
[1767137539147,3.36,124.93,124.87,9.51780526]
[1767137539350,3.36,124.92,124.87,6.36780526]
[1767137539938,0.05819221,124.91,124.88,0.05812155]
[1767137548263,3.41819221,124.91,124.88,0.05812155]
[1767137550663,3.41819221,124.91,124.85,101.877]
[1767137551765,3.41819221,124.91,124.87,0.05629224]
[1767137554669,3.36,124.9,124.84,3.26]
[1767137555669,0.05372414,124.88,124.86,0.05373662]
[1767137560670,3.41372414,124.88,124.82,3.26]
[1767137561166,3.36,124.87,124.82,3.26]
[1767137561877,3.36,124.87,124.83,0.05105132]
[1767137567583,3.48,124.86,124.8,3.29]
[1767137568589,0.06028542,124.84,124.82,0.05655841]
[1767137587305,176.67041223,124.89,124.84,3.26]
[1767137588419,0.05852941,124.88,124.85,0.05872129]
[1767137588720,0.05852941,124.88,124.85,7.27582129]
[1767137589025,0.05852941,124.88,124.85,9.17913964]
[1767137590516,0.05852941,124.88,124.85,7.27582129]
[1767137598223,3.25852941,124.88,124.81,3.26]
[1767137598727,3.2,124.87,124.81,3.26]
[1767137599125,0.06147122,124.85,124.83,0.05300969]
[1767137599521,0.06147122,124.85,124.81,10.4791]
[1767137600430,0.06147122,124.85,124.82,0.05915264]
[1767137612443,3.26147122,124.85,124.81,6.29742271]
[1767137612642,3.26147122,124.85,124.79,105.2304]
[1767137613538,3.26147122,124.85,124.81,0.05282569]
[1767137638157,3.26147122,124.85,124.81,0.00282569]
[1767137638660,3.21,124.84,124.78,3.19]
[1767137639260,3.21,124.84,124.79,10.4105]
[1767137639649,0.05475109,124.83,124.8,0.05280189]
[1767137661078,176.64041223,124.89,124.82,3.27]
[1767137661272,176.64041223,124.89,124.83,3.27]
[1767137661968,3.45,124.89,124.83,3.27]
[1767137662171,0.06142547,124.87,124.85,0.06063799]
[1767137670879,0.06142547,124.87,124.8,14.95348248]
[1767137670880,3.51142547,124.87,124.79,107.93936434]
[1767137671079,3.45,124.87,124.79,107.93936434]
[1767137671680,0.05863271,124.84,124.82,0.05167047]
[1767137672474,3.50863271,124.84,124.82,0.00167047]
[1767137675883,0.05863271,124.84,124.82,0.00167047]
[1767137681675,3.50863271,124.84,124.82,0.00167047]
[1767137681880,3.50863271,124.84,124.79,96.60826389]
[1767137681881,3.50863271,124.84,124.79,102.12035338]
[1767137682380,3.50863271,124.84,124.78,112.63105338]
[1767137682986,3.50863271,124.84,124.8,0.05816417]
[1767137689693,3.50863271,124.84,124.77,102.14035338]
[1767137689694,3.50863271,124.84,124.77,7.42035338]
[1767137689881,3.51,124.82,124.76,17.59313304]
[1767137690694,3.56532824,124.8,124.78,0.06055213]
[1767137691193,3.56532824,124.8,124.78,0.00055213]
[1767137714612,3.56532824,124.8,124.73,108.36352857]
[1767137715612,3.56532824,124.8,124.75,0.02400235]
[1767137717810,10.78532824,124.8,124.75,0.02400235]
[1767137718006,3.37,124.79,124.75,0.02400235]
[1767137718717,3.37,124.79,124.75,0.00400235]
[1767137719109,10.5909,124.79,124.75,0.00400235]
[1767137719302,3.37,124.78,124.75,0.00400235]
[1767137721723,3.37,124.78,124.72,94.74]
[1767137722421,3.37,124.78,124.72,101.9646]
[1767137722922,3.43116734,124.76,124.72,101.9646]
[1767137723118,0.06116734,124.76,124.73,10.674]
[1767137723316,3.37,124.79,124.74,3.45]
[1767137724218,0.05220292,124.78,124.75,0.05814774]
[1767137724523,3.42220292,124.78,124.75,0.05814774]
[1767137739630,0.05220292,124.78,124.75,3.50814774]
[1767137739831,3.37,124.81,124.76,94.76]
[1767137740626,3.37,124.81,124.76,109.40265338]
[1767137740826,0.06165786,124.8,124.76,109.40265338]
[1767137749432,0.06165786,124.8,124.76,109.41206276]
[1767137750241,0.06165786,124.8,124.76,101.9823]
[1767137752232,0.06165786,124.8,124.76,105.3323]
[1767137762151,0.06165786,124.8,124.76,98.11]
[1767137762339,3.48165786,124.8,124.75,0.05814774]
[1767137762546,3.48165786,124.8,124.75,94.81814774]
[1767137764664,3.48165786,124.8,124.75,102.2479105]
[1767137765564,3.48165786,124.8,124.75,94.81814774]
[1767137766761,10.6407,124.79,124.75,0.05814774]
[1767137781687,3.42,124.79,124.75,0.05814774]
[1767137783780,0.06165786,124.8,124.75,0.05814774]
[1767137784087,0.06165786,124.8,124.75,10.7379105]
[1767137784479,0.06165786,124.8,124.75,17.9607105]
[1767137786483,0.06165786,124.8,124.76,3.25]
[1767137790893,0.06165786,124.8,124.76,5.16016779]
[1767137794193,0.06165786,124.8,124.76,12.58993055]
[1767137800603,0.06165786,124.8,124.76,5.16016779]
[1767137802403,0.06165786,124.8,124.76,12.58993055]
[1767137802802,0.06165786,124.8,124.77,3.25]
[1767137824335,0.06165786,124.8,124.77,10.68550139]
[1767137849044,0.06165786,124.8,124.77,3.25]
[1767137849252,0.06165786,124.8,124.77,10.70213972]
[1767137854053,3.37,124.85,124.8,3.45]
[1767137854944,0.06112854,124.84,124.8,3.45]
[1767137855149,0.06112854,124.84,124.81,0.05507651]
[1767137871767,0.06112854,124.84,124.81,3.52507651]
[1767137872068,0.00112854,124.84,124.81,3.52507651]
[1767137872468,3.35,124.87,124.81,3.52507651]
[1767137872774,3.35,124.88,124.83,3.44]
[1767137872979,10.5663,124.87,124.81,3.44]
[1767137873181,3.35,124.86,124.81,3.44]
[1767137873379,0.05659425,124.85,124.82,0.05513713]
[1767137874376,0.05659425,124.85,124.82,3.49513713]
[1767137878376,142.35428629,124.88,124.82,3.49513713]
[1767137879578,0.05494349,124.86,124.82,3.49513713]
[1767137879970,0.05494349,124.86,124.82,10.71383713]
[1767137880169,139.00428629,124.88,124.83,3.33]
[1767137881272,139.00428629,124.88,124.84,3.33]
[1767137882272,139.00428629,124.88,124.85,3.32356286]
[1767137883372,139.05975808,124.88,124.85,3.32356286]
[1767137889781,0.05547179,124.88,124.85,3.32356286]
[1767137895782,3.51547179,124.88,124.85,0.05356286]
[1767137895986,3.46,124.86,124.81,10.4289]
[1767137896283,3.46,124.86,124.82,3.22]
[1767137896884,0.05519775,124.85,124.83,0.06086536]
[1767137910988,3.5,124.84,124.8,7.45213972]
[1767137911185,3.5,124.84,124.79,17.89263972]
[1767137911385,3.5,124.84,124.79,10.4405]
[1767137912079,3.5,124.84,124.8,0.05966195]
[1767137941322,3.5,124.84,124.79,7.2206]
[1767137942516,3.5,124.84,124.8,0.05696115]
[1767137945822,3.5,124.84,124.8,7.27696115]
[1767137946416,3.5,124.84,124.8,14.72910087]
[1767137947922,0.05519775,124.85,124.81,7.2193]
[1767137948725,3.36519775,124.85,124.81,7.2193]
[1767137952224,3.36519775,124.85,124.8,10.75910087]
[1767137952423,3.36519775,124.85,124.8,7.50910087]
[1767137952927,3.36519775,124.85,124.8,0.05696115]
[1767137956029,3.36519775,124.85,124.8,7.50910087]
[1767137960634,3.36519775,124.85,124.81,7.45213972]
[1767137961137,3.36519775,124.85,124.8,7.50910087]
[1767137966036,3.36519775,124.85,124.8,7.50131123]
[1767137969942,3.36519775,124.85,124.8,0.05696115]
[1767137985350,10.58249775,124.85,124.8,0.05696115]
[1767137986853,3.4,124.84,124.8,0.05696115]
[1767137987554,3.4,124.84,124.8,7.50131123]
[1767138002460,0.05519775,124.85,124.81,18.00355008]
[1767138002665,3.38,124.86,124.81,18.00355008]
[1767138002964,3.38,124.86,124.82,7.44435008]
[1767138003160,3.38,124.86,124.81,18.00355008]
[1767138003361,3.38,124.86,124.82,7.44435008]
[1767138003759,0.05242706,124.85,124.83,0.05247982]
[1767138010565,10.19741412,124.89,124.83,3.39247982]
[1767138010566,3.38,124.88,124.83,3.39247982]
[1767138010958,3.38,124.9,124.83,10.8368299]
[1767138011164,3.38,124.9,124.83,3.34]
[1767138011571,3.38,124.89,124.83,10.5579]
[1767138011770,0.0534157,124.88,124.85,0.05915279]
[1767138041105,0.0534157,124.88,124.85,3.33915279]
[1767138046312,0.0534157,124.88,124.85,10.78350287]
[1767138046799,3.36,124.93,124.87,9.12305337]
[1767138047003,3.36,124.93,124.86,7.44435008]
[1767138047204,3.36,124.91,124.85,7.2166]
[1767138047617,3.36,124.91,124.85,14.66095008]
[1767138047910,0.05628929,124.89,124.87,0.05656525]
[1767138080233,3.38,124.93,124.87,0.05656525]
[1767138081044,0.05757989,124.91,124.87,0.05656525]
[1767138083846,3.43757989,124.91,124.87,0.05656525]
[1767138084048,3.43757989,124.91,124.84,9.96936434]
[1767138084248,3.43757989,124.91,124.83,3.43]
[1767138084543,3.38,124.91,124.83,3.43]
[1767138085044,0.05166479,124.88,124.86,0.05668139]
[1767138085345,0.05166479,124.88,124.83,3.43]
[1767138085549,0.05166479,124.88,124.83,10.6479]
[1767138086145,0.05166479,124.88,124.84,0.05139649]
[1767138089855,0.05166479,124.88,124.84,3.48139649]
[1767138103356,0.05166479,124.88,124.85,7.2171]
[1767138109581,0.05166479,124.88,124.85,10.6971]
[1767138121983,0.00166479,124.88,124.86,10.5265]
[1767138125590,0.00166479,124.88,124.87,10.526]
[1767138125793,161.45956112,124.94,124.88,3.31]
[1767138125997,161.45956112,124.94,124.88,97.99]
[1767138126391,161.45956112,124.94,124.89,3.31]
[1767138126791,0.05076627,124.93,124.9,0.05580322]
[1767138127893,3.5,124.92,124.86,7.2162]
[1767138128497,3.5,124.91,124.85,97.99]
[1767138128897,0.05734125,124.89,124.87,0.05565426]
[1767138158020,3.38734125,124.89,124.85,3.31]
[1767138158228,3.38734125,124.89,124.84,105.37521139]
[1767138159324,3.38734125,124.89,124.85,3.2993338]
[1767138194074,3.38734125,124.89,124.85,0.0593338]
[1767138202386,10.60214125,124.89,124.85,0.0593338]
[1767138202585,3.38734125,124.89,124.85,0.0593338]
[1767138223401,3.38734125,124.89,124.85,10.89150044]
[1767138223906,3.38734125,124.89,124.85,18.10850044]
[1767138226808,0.05734125,124.89,124.85,18.10850044]
[1767138228307,0.05734125,124.89,124.85,10.6563338]
[1767138257034,0.05734125,124.89,124.85,18.10850044]
[1767138257834,0.05734125,124.89,124.85,112.78850044]
[1767138276559,0.05734125,124.89,124.86,3.4]
[1767138278363,149.91129525,124.91,124.87,3.4]
[1767138279463,0.05417151,124.9,124.88,0.06166273]
[1767138310590,10.75847151,124.9,124.86,7.45551512]
[1767138310783,10.75847151,124.9,124.85,98.04]
[1767138311285,10.75847151,124.9,124.85,105.49551512]
[1767138311684,10.75847151,124.9,124.86,0.05700399]
[1767138319000,3.54417151,124.9,124.86,0.05700399]
[1767138320095,0.05417151,124.9,124.86,11.04251911]
[1767138320300,0.05417151,124.9,124.87,3.53]
[1767138337510,0.00417151,124.9,124.87,10.98551512]
[1767138337718,0.00417151,124.9,124.88,3.53]
[1767138349020,0.00417151,124.9,124.86,3.26700399]
[1767138364824,0.00417151,124.9,124.86,10.72251911]
[1767138365026,0.00417151,124.9,124.87,3.37]
[1767138375537,0.00417151,124.9,124.87,10.5857]
[1767138375737,0.00417151,124.9,124.88,3.37]
[1767138376530,0.00417151,124.9,124.88,10.585]
[1767138377940,0.00417151,124.9,124.89,10.6848]
[1767138378837,3.42,124.95,124.9,3.47]
[1767138380043,3.47682916,124.94,124.91,0.05776135]
[1767138385541,0.05682916,124.94,124.91,3.52776135]
[1767138386442,5.32577494,124.98,124.91,3.52776135]
[1767138386637,3.42,124.97,124.91,3.52776135]
[1767138387344,0.05682479,124.95,124.91,3.52776135]
[1767138387546,0.05682479,124.95,124.92,7.2128]
[1767138387944,0.05682479,124.95,124.92,10.6828]
[1767138392653,0.05682479,124.95,124.91,3.52776135]
[1767138393652,0.05682479,124.95,124.91,10.74136135]
[1767138410572,5.28259973,124.95,124.91,0.05776135]
[1767138410880,1.90577494,124.93,124.89,3.43]
[1767138411675,0.05698488,124.92,124.9,0.05890387]
[1767138432609,98.01,124.96,124.9,3.52890387]
[1767138432901,99.91577494,124.96,124.9,3.52890387]
[1767138433698,5.27577494,124.98,124.92,10.6828]
[1767138433904,3.37,124.97,124.92,7.2128]
[1767138434801,3.42857959,124.96,124.93,0.05552613]
[1767138465435,3.42857959,124.96,124.93,7.26792613]
[1767138470442,3.42857959,124.96,124.89,7.43903373]
[1767138470644,3.37,124.95,124.87,3.45]
[1767138471346,3.37,124.94,124.87,3.45]
[1767138471545,3.42649398,124.92,124.89,0.0534854]
[1767138476044,3.42649398,124.92,124.85,3.45]
[1767138476244,0.05649398,124.92,124.87,3.45]
[1767138476950,0.05649398,124.92,124.89,7.2147]
[1767138478250,0.05649398,124.92,124.9,7.2141]
[1767138479854,0.05649398,124.92,124.9,10.4141]
[1767138480049,3.52,124.96,124.91,7.2136]
[1767138481051,0.06077032,124.95,124.92,0.05727444]
[1767138484759,3.52,124.92,124.85,3.2]
[1767138484961,3.52,124.91,124.85,3.2]
[1767138485755,0.05961475,124.89,124.87,0.05735527]
[1767138486550,0.05961475,124.89,124.87,7.27275527]
[1767138487155,336.2435,125.06,124.88,4.8]
[1767138487462,11.07221586,125.09,125.01,112.1212]
[1767138487655,3.52,125.08,125.01,94.66]
[1767138487964,3.52,125.08,125.0,7.208]
[1767138488164,0.05832851,125.05,125.03,0.0505584]
[1767138488356,3.52,125.08,125.04,7.42347632]
[1767138488557,3.52,125.08,125.05,7.42347632]
[1767138488765,3.52,125.08,125.03,0.0505584]
[1767138489357,3.58036548,125.07,125.03,0.0505584]
[1767138492076,96.03230631,125.08,125.03,0.0505584]
[1767138492962,96.01230631,125.08,125.03,0.0505584]
[1767138493266,94.68118929,125.07,125.03,0.0505584]
[1767138494159,3.52,125.06,125.03,0.0505584]
[1767138494758,2.9766969,125.06,124.98,7.2095]
[1767138494968,2.9766969,125.06,124.96,112.1598]
[1767138494969,3.52,125.04,124.96,112.1598]
[1767138495171,6.4966969,125.04,124.96,112.1598]
[1767138495372,3.52,125.03,124.96,112.1598]
[1767138495765,0.05653896,125.01,124.98,0.05701215]
[1767138495962,0.05653896,125.01,124.93,112.1862]
[1767138496168,3.52,125.01,124.93,112.1862]
[1767138496469,98.14,125.01,124.93,112.1862]
[1767138497160,0.06178943,124.98,124.96,0.05185884]
[1767138500678,0.06178943,124.98,124.97,7.28181047]
[1767138502283,0.06178943,124.98,124.97,7.28601523]
[1767138505381,3.54178943,124.98,124.92,7.2126]
[1767138505783,1.90376492,124.97,124.92,7.2126]
[1767138506174,1.90376492,124.97,124.93,0.05724667]
[1767138507381,3.54178943,124.98,124.93,0.05724667]
[1767138513492,3.54178943,124.98,124.93,7.26964667]
[1767138528703,5.44555435,124.98,124.93,7.26964667]
[1767138536910,3.54178943,124.98,124.93,7.26964667]
[1767138542314,3.54178943,124.98,124.93,0.05724667]
[1767138542520,3.53,124.94,124.88,7.43903373]
[1767138542813,3.53,124.94,124.87,119.67913373]
[1767138543817,0.06056689,124.92,124.9,7.2142]
[1767138544814,3.53,124.98,124.92,7.213]
[1767138545014,3.53,124.97,124.92,7.213]
[1767138545823,0.06027577,124.96,124.93,0.05192823]
[1767138560433,0.06027577,124.96,124.93,7.26422823]
[1767138560732,0.00027577,124.96,124.93,1.95569315]
[1767138561628,0.00027577,124.96,124.95,7.2113]
[1767138579955,3.5,125.01,124.95,7.2113]